[Event "Early-Titled-Tuesday-Blitz-February-06-2024"]
[Site "Chess.com"]
[Date "2024.02.06"]
[Round "10"]
[White "Bauman_Guy"]
[Black "Thunderbolt135"]
[Result "1-0"]
[WhiteElo "2871"]
[BlackElo "2696"]
[TimeControl "180+1"]
[EndTime "9:52:45 PST"]
[Termination "Bauman_Guy won by resignation"]

1. e4 {[%clk 0:03:00.9]} 1... c5 {[%clk 0:03:00.2]} 2. Nf3 {[%clk 0:03:01.6]}
2... e6 {[%clk 0:03:00.5]} 3. d4 {[%clk 0:03:02.2]} 3... cxd4 {[%clk 0:03:01.4]}
4. Nxd4 {[%clk 0:03:03.1]} 4... Nf6 {[%clk 0:03:02.1]} 5. Nc3 {[%clk 0:03:03.8]}
5... Bb4 {[%clk 0:03:02.4]} 6. e5 {[%clk 0:03:03.5]} 6... Nd5 {[%clk 0:02:53.3]}
7. Qg4 {[%clk 0:03:02.5]} 7... O-O {[%clk 0:02:52.2]} 8. Bd2 {[%clk 0:03:00.9]}
8... Nxc3 {[%clk 0:02:49.1]} 9. bxc3 {[%clk 0:03:00.7]} 9... Be7 {[%clk
0:02:49.3]} 10. Bh6 {[%clk 0:03:00.3]} 10... g6 {[%clk 0:02:49.5]} 11. Bd3
{[%clk 0:02:54.3]} 11... Qc7 {[%clk 0:02:47.2]} 12. O-O {[%clk 0:02:52.4]} 12...
Qxe5 {[%clk 0:02:39]} 13. Rfe1 {[%clk 0:02:45.3]} 13... Qf6 {[%clk 0:02:34.3]}
14. Nf3 {[%clk 0:02:31.6]} 14... Nc6 {[%clk 0:02:32.3]} 15. h4 {[%clk
0:02:31.6]} 15... d5 {[%clk 0:02:18.8]} 16. Bxf8 {[%clk 0:02:21.9]} 16... Bxf8
{[%clk 0:02:19.7]} 17. Qg3 {[%clk 0:02:22.3]} 17... Bh6 {[%clk 0:02:01.6]} 18.
Ng5 {[%clk 0:02:15.4]} 18... e5 {[%clk 0:01:06.1]} 19. c4 {[%clk 0:02:13.9]}
19... d4 {[%clk 0:01:06.5]} 20. Rab1 {[%clk 0:02:11.7]} 20... Bf8 {[%clk
0:00:50.6]} 21. Be4 {[%clk 0:02:07.3]} 21... Bd6 {[%clk 0:00:43.3]} 22. Bd5
{[%clk 0:02:02.7]} 22... e4 {[%clk 0:00:30.7]} 23. Nxe4 {[%clk 0:02:01.1]} 1-0

[Event "Early-Titled-Tuesday-Blitz-February-06-2024"]
[Site "Chess.com"]
[Date "2024.02.06"]
[Round "10"]
[White "AldokhinIvan"]
[Black "SergioMoralesG"]
[Result "1-0"]
[WhiteElo "2627"]
[BlackElo "2462"]
[TimeControl "180+1"]
[EndTime "9:52:46 PST"]
[Termination "AldokhinIvan won by checkmate"]

1. e4 {[%clk 0:03:00.9]} 1... c5 {[%clk 0:00:11.8]} 2. Nf3 {[%clk 0:02:58.4]}
2... e6 {[%clk 0:00:12.3]} 3. b4 {[%clk 0:02:58.8]} 3... cxb4 {[%clk 0:00:11.2]}
4. d4 {[%clk 0:02:59.5]} 4... d5 {[%clk 0:00:11.2]} 5. e5 {[%clk 0:02:59.2]}
5... Nc6 {[%clk 0:00:11.4]} 6. a3 {[%clk 0:02:59.3]} 6... bxa3 {[%clk
0:00:10.5]} 7. c3 {[%clk 0:02:59.8]} 7... Be7 {[%clk 0:00:10.5]} 8. Nxa3 {[%clk
0:02:59.8]} 8... Nh6 {[%clk 0:00:09.9]} 9. Bxh6 {[%clk 0:02:51.1]} 9... gxh6
{[%clk 0:00:10.8]} 10. Bd3 {[%clk 0:02:49.4]} 10... Bd7 {[%clk 0:00:10]} 11. Nc2
{[%clk 0:02:43.5]} 11... Qc7 {[%clk 0:00:09.4]} 12. Qd2 {[%clk 0:02:41.1]} 12...
h5 {[%clk 0:00:06.2]} 13. O-O {[%clk 0:02:38.6]} 13... O-O-O {[%clk 0:00:06.2]}
14. Rfb1 {[%clk 0:02:36.8]} 14... Rdg8 {[%clk 0:00:05.9]} 15. Ne3 {[%clk
0:02:30.9]} 15... Rg7 {[%clk 0:00:05.9]} 16. c4 {[%clk 0:02:30.6]} 16... dxc4
{[%clk 0:00:05.1]} 17. Bxc4 {[%clk 0:02:30.1]} 17... Rhg8 {[%clk 0:00:05.8]} 18.
Bf1 {[%clk 0:02:27.7]} 18... h4 {[%clk 0:00:05.1]} 19. d5 {[%clk 0:02:27.5]}
19... exd5 {[%clk 0:00:02]} 20. Nxd5 {[%clk 0:02:26.9]} 20... Qd8 {[%clk
0:00:02.2]} 21. Qb2 {[%clk 0:02:22.4]} 21... Be6 {[%clk 0:00:02.5]} 22. Qxb7#
{[%clk 0:02:20.9]} 1-0

[Event "Early-Titled-Tuesday-Blitz-February-06-2024"]
[Site "Chess.com"]
[Date "2024.02.06"]
[Round "10"]
[White "Dinosaurio_1975"]
[Black "maciek_92"]
[Result "0-1"]
[WhiteElo "2591"]
[BlackElo "2788"]
[TimeControl "180+1"]
[EndTime "9:52:49 PST"]
[Termination "maciek_92 won on time"]

1. c4 {[%clk 0:03:00.9]} 1... e5 {[%clk 0:02:58.4]} 2. Nc3 {[%clk 0:02:59.9]}
2... Nc6 {[%clk 0:02:59]} 3. Nf3 {[%clk 0:02:59.9]} 3... f5 {[%clk 0:02:58.1]}
4. g3 {[%clk 0:02:56.8]} 4... Nf6 {[%clk 0:02:58.2]} 5. Bg2 {[%clk 0:02:56.1]}
5... Be7 {[%clk 0:02:57.7]} 6. d3 {[%clk 0:02:55.6]} 6... O-O {[%clk 0:02:57.2]}
7. O-O {[%clk 0:02:56.5]} 7... d6 {[%clk 0:02:57.6]} 8. Bd2 {[%clk 0:02:55]}
8... Qe8 {[%clk 0:02:57.8]} 9. Qc1 {[%clk 0:02:54.3]} 9... Kh8 {[%clk
0:02:52.3]} 10. Rb1 {[%clk 0:02:53.4]} 10... a5 {[%clk 0:02:52]} 11. a3 {[%clk
0:02:50.4]} 11... Qh5 {[%clk 0:02:51]} 12. b4 {[%clk 0:02:49.6]} 12... axb4
{[%clk 0:02:47.1]} 13. axb4 {[%clk 0:02:50.5]} 13... e4 {[%clk 0:02:48]} 14.
dxe4 {[%clk 0:02:47.3]} 14... fxe4 {[%clk 0:02:45.5]} 15. Ng5 {[%clk 0:01:56.5]}
15... Nd4 {[%clk 0:02:45]} 16. Ngxe4 {[%clk 0:01:51.8]} 16... Ng4 {[%clk
0:02:29.8]} 17. h3 {[%clk 0:01:48.8]} 17... Ne5 {[%clk 0:02:29.2]} 18. Be3
{[%clk 0:01:12.1]} 18... Bxh3 {[%clk 0:02:16]} 19. Bxd4 {[%clk 0:01:09.8]} 19...
Ng4 {[%clk 0:02:16]} 20. Ng5 {[%clk 0:00:03.5]} 20... Bxg2 {[%clk 0:02:14.2]}
0-1

[Event "Early-Titled-Tuesday-Blitz-February-06-2024"]
[Site "Chess.com"]
[Date "2024.02.06"]
[Round "10"]
[White "DarZay"]
[Black "Talent-OF-Slovenia"]
[Result "1-0"]
[WhiteElo "2300"]
[BlackElo "2445"]
[TimeControl "180+1"]
[EndTime "9:53:03 PST"]
[Termination "DarZay won by resignation"]

1. e4 {[%clk 0:03:00.9]} 1... e6 {[%clk 0:02:55.2]} 2. d4 {[%clk 0:02:58.5]}
2... d5 {[%clk 0:02:55.4]} 3. Bd3 {[%clk 0:02:58]} 3... dxe4 {[%clk 0:02:54.9]}
4. Bxe4 {[%clk 0:02:58.4]} 4... Nf6 {[%clk 0:02:55.8]} 5. Bf3 {[%clk 0:02:58.6]}
5... Be7 {[%clk 0:02:55.7]} 6. Ne2 {[%clk 0:02:57.2]} 6... O-O {[%clk
0:02:56.2]} 7. O-O {[%clk 0:02:56.7]} 7... h6 {[%clk 0:02:54.3]} 8. Bf4 {[%clk
0:02:52]} 8... Bd7 {[%clk 0:02:49.5]} 9. Bxb7 {[%clk 0:02:50.6]} 9... Bc6 {[%clk
0:02:43.2]} 10. Bxa8 {[%clk 0:02:50.5]} 10... Bxa8 {[%clk 0:02:43.8]} 11. c4
{[%clk 0:02:50.1]} 11... Nbd7 {[%clk 0:02:28.6]} 12. Nbc3 {[%clk 0:02:49]} 12...
c5 {[%clk 0:02:23.3]} 13. d5 {[%clk 0:02:42.2]} 13... exd5 {[%clk 0:02:14]} 14.
cxd5 {[%clk 0:02:38]} 14... Nh5 {[%clk 0:02:11.4]} 15. Be3 {[%clk 0:02:22.3]}
15... Bd6 {[%clk 0:02:10.1]} 16. Ng3 {[%clk 0:02:20.1]} 16... Nxg3 {[%clk
0:02:08.6]} 17. hxg3 {[%clk 0:02:17]} 17... Nf6 {[%clk 0:02:06.1]} 18. Qf3
{[%clk 0:02:15.5]} 18... Re8 {[%clk 0:02:02.2]} 19. Rad1 {[%clk 0:02:14.4]}
19... Qb8 {[%clk 0:02:01]} 20. b3 {[%clk 0:02:12.9]} 20... a6 {[%clk 0:01:45.9]}
21. Bxh6 {[%clk 0:02:10.5]} 21... Nd7 {[%clk 0:01:37.7]} 22. Bf4 {[%clk
0:02:06]} 22... Ne5 {[%clk 0:01:34.9]} 23. Bxe5 {[%clk 0:02:05.4]} 23... Bxe5
{[%clk 0:01:35.1]} 24. Ne4 {[%clk 0:02:04.5]} 24... Bd4 {[%clk 0:01:32.9]} 25.
Ng5 {[%clk 0:02:00.7]} 25... Qc7 {[%clk 0:01:27.4]} 26. Qh5 {[%clk 0:01:52.5]}
26... g6 {[%clk 0:00:38.7]} 27. Qh7+ {[%clk 0:01:52.2]} 27... Kf8 {[%clk
0:00:39.3]} 28. Rxd4 {[%clk 0:01:48.3]} 28... cxd4 {[%clk 0:00:37.5]} 29. Qh8+
{[%clk 0:01:48.6]} 29... Ke7 {[%clk 0:00:35.5]} 30. Re1+ {[%clk 0:01:48.8]} 1-0

[Event "Early-Titled-Tuesday-Blitz-February-06-2024"]
[Site "Chess.com"]
[Date "2024.02.06"]
[Round "10"]
[White "Som2310"]
[Black "RandomNoob04"]
[Result "0-1"]
[WhiteElo "2792"]
[BlackElo "2617"]
[TimeControl "180+1"]
[EndTime "9:53:04 PST"]
[Termination "RandomNoob04 won by resignation"]

1. e4 {[%clk 0:03:00.9]} 1... e5 {[%clk 0:03:00]} 2. Nf3 {[%clk 0:03:00.7]} 2...
Nf6 {[%clk 0:03:00.7]} 3. d4 {[%clk 0:02:59.8]} 3... Nxe4 {[%clk 0:03:00.5]} 4.
Bd3 {[%clk 0:02:58.4]} 4... d5 {[%clk 0:03:00.9]} 5. Nxe5 {[%clk 0:02:57.7]}
5... Nd7 {[%clk 0:03:01.3]} 6. Nc3 {[%clk 0:02:58]} 6... Nxe5 {[%clk 0:02:54.1]}
7. dxe5 {[%clk 0:02:57.8]} 7... Nxc3 {[%clk 0:02:50.8]} 8. bxc3 {[%clk
0:02:57.8]} 8... Be6 {[%clk 0:02:49.9]} 9. O-O {[%clk 0:02:54.4]} 9... Bc5
{[%clk 0:02:48]} 10. Qh5 {[%clk 0:02:51.7]} 10... Qd7 {[%clk 0:02:38.4]} 11. Rb1
{[%clk 0:02:51.5]} 11... O-O-O {[%clk 0:02:37.4]} 12. Bg5 {[%clk 0:02:47.8]}
12... Rdg8 {[%clk 0:02:34.6]} 13. a4 {[%clk 0:02:39.4]} 13... h6 {[%clk
0:02:34.2]} 14. Be3 {[%clk 0:02:39.2]} 14... Bxe3 {[%clk 0:02:24.7]} 15. fxe3
{[%clk 0:02:39.5]} 15... Qc6 {[%clk 0:02:09.9]} 16. Rf4 {[%clk 0:02:23.6]} 16...
Qxc3 {[%clk 0:01:59.3]} 17. Rfb4 {[%clk 0:02:23.4]} 17... b6 {[%clk 0:01:55.3]}
18. a5 {[%clk 0:02:23.7]} 18... g6 {[%clk 0:01:51.3]} 19. Qe2 {[%clk 0:02:17.4]}
19... Qxe5 {[%clk 0:01:50.8]} 20. Ba6+ {[%clk 0:02:17.3]} 20... Kd8 {[%clk
0:01:50.1]} 21. axb6 {[%clk 0:02:17.2]} 21... axb6 {[%clk 0:01:51]} 22. c4
{[%clk 0:02:16.3]} 22... d4 {[%clk 0:01:48.7]} 23. Rd1 {[%clk 0:02:07.3]} 23...
Ke7 {[%clk 0:01:44.8]} 24. Rxd4 {[%clk 0:01:47.3]} 24... c5 {[%clk 0:01:37]} 25.
Rb5 {[%clk 0:01:47.2]} 25... Ra8 {[%clk 0:01:10.7]} 26. Bb7 {[%clk 0:01:28.2]}
26... Ra1+ {[%clk 0:01:11.3]} 27. Rd1 {[%clk 0:01:28.2]} 27... Bxc4 {[%clk
0:01:09.2]} 0-1

[Event "Early-Titled-Tuesday-Blitz-February-06-2024"]
[Site "Chess.com"]
[Date "2024.02.06"]
[Round "10"]
[White "Hilary46"]
[Black "SmirnovTimofey2000"]
[Result "1-0"]
[WhiteElo "2690"]
[BlackElo "1968"]
[TimeControl "180+1"]
[EndTime "9:53:08 PST"]
[Termination "Hilary46 won by resignation"]

1. e4 {[%clk 0:03:00.9]} 1... e5 {[%clk 0:02:58.1]} 2. Nf3 {[%clk 0:03:01.3]}
2... Nf6 {[%clk 0:02:58.1]} 3. Nxe5 {[%clk 0:03:00.9]} 3... d6 {[%clk
0:02:58.5]} 4. Nf3 {[%clk 0:03:01.5]} 4... Nxe4 {[%clk 0:02:58.8]} 5. Nc3 {[%clk
0:03:02.2]} 5... Nxc3 {[%clk 0:02:58.7]} 6. dxc3 {[%clk 0:03:03.1]} 6... Be7
{[%clk 0:02:59.4]} 7. Be3 {[%clk 0:03:01]} 7... Nd7 {[%clk 0:02:56.3]} 8. Qd2
{[%clk 0:03:01.1]} 8... Ne5 {[%clk 0:02:55.8]} 9. Nxe5 {[%clk 0:02:57.6]} 9...
dxe5 {[%clk 0:02:56.7]} 10. Qxd8+ {[%clk 0:02:57]} 10... Bxd8 {[%clk 0:02:57.6]}
11. Bc4 {[%clk 0:02:53.6]} 11... h6 {[%clk 0:02:38.9]} 12. O-O-O {[%clk
0:02:52.8]} 12... Bg5 {[%clk 0:02:35.6]} 13. Rhe1 {[%clk 0:02:51.9]} 13... Bxe3+
{[%clk 0:02:33.6]} 14. Rxe3 {[%clk 0:02:52.8]} 14... f6 {[%clk 0:02:27.3]} 15.
f4 {[%clk 0:02:53.1]} 15... Bg4 {[%clk 0:02:17.3]} 16. Rde1 {[%clk 0:02:52.5]}
16... O-O-O {[%clk 0:02:04]} 17. fxe5 {[%clk 0:02:52]} 17... fxe5 {[%clk
0:02:04.3]} 18. Rxe5 {[%clk 0:02:52.9]} 18... Rd7 {[%clk 0:01:55.6]} 19. Re8+
{[%clk 0:02:48.8]} 19... Rd8 {[%clk 0:01:51]} 20. Rxh8 {[%clk 0:02:47.9]} 20...
Rxh8 {[%clk 0:01:50.5]} 21. Be6+ {[%clk 0:02:47.6]} 21... Bxe6 {[%clk
0:01:49.7]} 22. Rxe6 {[%clk 0:02:48.5]} 22... Kd8 {[%clk 0:01:42.9]} 23. Rg6
{[%clk 0:02:47.5]} 23... Rg8 {[%clk 0:01:39]} 24. Kd2 {[%clk 0:02:45.5]} 24...
Ke7 {[%clk 0:01:39.4]} 25. c4 {[%clk 0:02:45.6]} 25... Kf7 {[%clk 0:01:38.5]}
26. Rg3 {[%clk 0:02:46.1]} 26... Rd8+ {[%clk 0:01:36.1]} 27. Rd3 {[%clk
0:02:45.3]} 27... Re8 {[%clk 0:01:31.2]} 28. Rd7+ {[%clk 0:02:45.5]} 28... Re7
{[%clk 0:01:30.5]} 29. Rxe7+ {[%clk 0:02:46.1]} 29... Kxe7 {[%clk 0:01:31.4]}
30. Ke3 {[%clk 0:02:46.4]} 30... Ke6 {[%clk 0:01:30.7]} 31. Ke4 {[%clk
0:02:44.4]} 31... c6 {[%clk 0:01:22.6]} 32. c5 {[%clk 0:02:43]} 32... Kf6 {[%clk
0:01:18.7]} 33. b4 {[%clk 0:02:38.5]} 33... a6 {[%clk 0:01:18.5]} 34. g4 {[%clk
0:02:27.1]} 34... g6 {[%clk 0:01:15.3]} 35. h4 {[%clk 0:02:22.9]} 35... Ke6
{[%clk 0:01:12.8]} 36. g5 {[%clk 0:02:21.7]} 36... h5 {[%clk 0:00:58.5]} 37. c3
{[%clk 0:02:20.8]} 37... Ke7 {[%clk 0:00:49.4]} 38. Ke5 {[%clk 0:02:21.7]} 38...
Kf7 {[%clk 0:00:46.8]} 39. Kd6 {[%clk 0:02:07.6]} 39... Ke8 {[%clk 0:00:45.6]}
40. Ke6 {[%clk 0:02:03.1]} 1-0

[Event "Early-Titled-Tuesday-Blitz-February-06-2024"]
[Site "Chess.com"]
[Date "2024.02.06"]
[Round "10"]
[White "mjray79"]
[Black "Predo63"]
[Result "1-0"]
[WhiteElo "2708"]
[BlackElo "2517"]
[TimeControl "180+1"]
[EndTime "9:53:09 PST"]
[Termination "mjray79 won by resignation"]

1. Nf3 {[%clk 0:02:55.9]} 1... d5 {[%clk 0:02:59.7]} 2. d4 {[%clk 0:02:55]} 2...
Nf6 {[%clk 0:02:59.7]} 3. c4 {[%clk 0:02:55.2]} 3... c6 {[%clk 0:03:00.1]} 4. e3
{[%clk 0:02:54.6]} 4... Bf5 {[%clk 0:03:00.2]} 5. Nc3 {[%clk 0:02:54.6]} 5... e6
{[%clk 0:03:00.5]} 6. Nh4 {[%clk 0:02:54.7]} 6... Bg6 {[%clk 0:03:00.3]} 7. Nxg6
{[%clk 0:02:54]} 7... hxg6 {[%clk 0:03:01.2]} 8. Bd3 {[%clk 0:02:51.8]} 8...
Nbd7 {[%clk 0:03:01.4]} 9. O-O {[%clk 0:02:50.8]} 9... Bd6 {[%clk 0:03:00.2]}
10. h3 {[%clk 0:02:51.1]} 10... Rc8 {[%clk 0:02:59]} 11. Qe2 {[%clk 0:02:50.8]}
11... Bb8 {[%clk 0:02:58.9]} 12. e4 {[%clk 0:02:50.4]} 12... dxe4 {[%clk
0:02:58.6]} 13. Nxe4 {[%clk 0:02:51.3]} 13... Nxe4 {[%clk 0:02:58.8]} 14. Bxe4
{[%clk 0:02:42.9]} 14... Nf6 {[%clk 0:02:59.1]} 15. Rd1 {[%clk 0:02:35.3]} 15...
Qd6 {[%clk 0:02:46.4]} 16. f4 {[%clk 0:02:33.4]} 16... Nxe4 {[%clk 0:02:39.1]}
17. Qxe4 {[%clk 0:02:34.3]} 17... O-O {[%clk 0:02:39]} 18. Be3 {[%clk
0:02:32.8]} 18... Qd8 {[%clk 0:02:37.4]} 19. Rd2 {[%clk 0:02:31.4]} 19... Qf6
{[%clk 0:02:37.6]} 20. Rad1 {[%clk 0:02:30.5]} 20... Rcd8 {[%clk 0:02:37.2]} 21.
g4 {[%clk 0:02:25]} 21... Rfe8 {[%clk 0:02:36.1]} 22. Kg2 {[%clk 0:02:24.5]}
22... a6 {[%clk 0:02:34.3]} 23. Rh1 {[%clk 0:02:18.9]} 23... Ba7 {[%clk
0:02:31.2]} 24. b4 {[%clk 0:02:03.8]} 24... Rd7 {[%clk 0:02:29.3]} 25. h4 {[%clk
0:01:29.4]} 25... Red8 {[%clk 0:02:27.6]} 26. c5 {[%clk 0:01:24.4]} 26... Bb8
{[%clk 0:02:23.5]} 27. h5 {[%clk 0:01:23.1]} 27... Rd5 {[%clk 0:02:19.5]} 28.
hxg6 {[%clk 0:01:21.9]} 28... Qxg6 {[%clk 0:02:18.3]} 29. Qxg6 {[%clk
0:01:19.7]} 29... fxg6 {[%clk 0:02:18.5]} 30. Rf1 {[%clk 0:01:12.6]} 30... Kf7
{[%clk 0:02:17.8]} 31. Bg1 {[%clk 0:01:10.3]} 31... Rh8 {[%clk 0:02:12.5]} 32.
Re2 {[%clk 0:01:09.2]} 32... Bc7 {[%clk 0:02:08.1]} 33. Re4 {[%clk 0:00:59.5]}
33... Bd8 {[%clk 0:02:06.4]} 34. Rfe1 {[%clk 0:00:57.6]} 34... Re8 {[%clk
0:02:05.8]} 35. Re5 {[%clk 0:00:55.2]} 35... Bf6 {[%clk 0:02:05]} 36. R5e4
{[%clk 0:00:55.6]} 36... Rdd8 {[%clk 0:01:49.7]} 37. g5 {[%clk 0:00:54.3]} 37...
Be7 {[%clk 0:01:49.8]} 38. Rxe6 {[%clk 0:00:54.2]} 38... Bf8 {[%clk 0:01:49.6]}
39. f5 {[%clk 0:00:51.3]} 39... gxf5 {[%clk 0:01:49]} 40. g6+ {[%clk 0:00:51.1]}
40... Kg8 {[%clk 0:01:49]} 41. Rxe8 {[%clk 0:00:51.8]} 1-0

[Event "Early-Titled-Tuesday-Blitz-February-06-2024"]
[Site "Chess.com"]
[Date "2024.02.06"]
[Round "10"]
[White "CFalcons8"]
[Black "FlemingA"]
[Result "1-0"]
[WhiteElo "2341"]
[BlackElo "2415"]
[TimeControl "180+1"]
[EndTime "9:53:14 PST"]
[Termination "CFalcons8 won by resignation"]

1. Nf3 {[%clk 0:02:59.5]} 1... g5 {[%clk 0:02:35.1]} 2. Nxg5 {[%clk 0:02:59.2]}
2... e5 {[%clk 0:02:35.5]} 3. d4 {[%clk 0:02:56.7]} 3... Be7 {[%clk 0:02:27.9]}
4. Nf3 {[%clk 0:02:43.4]} 4... e4 {[%clk 0:02:26.9]} 5. Nfd2 {[%clk 0:02:42.7]}
5... d5 {[%clk 0:02:26.1]} 6. c4 {[%clk 0:02:43.1]} 6... c6 {[%clk 0:02:25.7]}
7. e3 {[%clk 0:02:43.1]} 7... Nf6 {[%clk 0:02:18.4]} 8. Nc3 {[%clk 0:02:43.2]}
8... Rg8 {[%clk 0:02:17.4]} 9. Qb3 {[%clk 0:02:38.6]} 9... Qd7 {[%clk
0:02:00.5]} 10. f3 {[%clk 0:02:38.2]} 10... exf3 {[%clk 0:01:49.2]} 11. Nxf3
{[%clk 0:02:39.1]} 11... Qe6 {[%clk 0:01:34.2]} 12. cxd5 {[%clk 0:02:35.9]}
12... cxd5 {[%clk 0:01:32.2]} 13. Nb5 {[%clk 0:02:32.4]} 13... Bd8 {[%clk
0:01:09.3]} 14. Bd2 {[%clk 0:02:29]} 14... a6 {[%clk 0:01:07.1]} 15. Nc3 {[%clk
0:02:27.6]} 15... Nc6 {[%clk 0:01:05.5]} 16. O-O-O {[%clk 0:02:26.9]} 16... Bd7
{[%clk 0:01:04.3]} 17. Kb1 {[%clk 0:02:25.3]} 17... b5 {[%clk 0:01:03.1]} 18.
Ne2 {[%clk 0:02:23.6]} 18... Ng4 {[%clk 0:00:51.3]} 19. Nf4 {[%clk 0:02:22.6]}
19... Qd6 {[%clk 0:00:51.7]} 20. Be1 {[%clk 0:02:18.4]} 20... Be6 {[%clk
0:00:44.3]} 21. h3 {[%clk 0:02:17.7]} 21... Nf6 {[%clk 0:00:42.6]} 22. g4 {[%clk
0:02:17.8]} 22... Ne4 {[%clk 0:00:37.2]} 23. Bd3 {[%clk 0:02:16.3]} 23... Na5
{[%clk 0:00:35.5]} 24. Bxa5 {[%clk 0:02:14.2]} 24... Bxa5 {[%clk 0:00:36.4]} 25.
Nxe6 {[%clk 0:02:09.7]} 25... Qxe6 {[%clk 0:00:23.8]} 26. Ne5 {[%clk 0:02:09.2]}
26... Nd6 {[%clk 0:00:19.5]} 27. Rhf1 {[%clk 0:02:08.4]} 27... f6 {[%clk
0:00:16.6]} 28. Nc6 {[%clk 0:02:07]} 28... Rg7 {[%clk 0:00:13.8]} 29. Nxa5
{[%clk 0:02:05.5]} 1-0

[Event "Early-Titled-Tuesday-Blitz-February-06-2024"]
[Site "Chess.com"]
[Date "2024.02.06"]
[Round "10"]
[White "Viktor_Poddubnyi"]
[Black "elchacal664"]
[Result "1-0"]
[WhiteElo "2268"]
[BlackElo "2421"]
[TimeControl "180+1"]
[EndTime "9:53:20 PST"]
[Termination "Viktor_Poddubnyi won by checkmate"]

1. e4 {[%clk 0:02:59.6]} 1... c5 {[%clk 0:02:59.4]} 2. Nf3 {[%clk 0:02:59.3]}
2... Nc6 {[%clk 0:02:59.6]} 3. d4 {[%clk 0:02:59.6]} 3... cxd4 {[%clk
0:03:00.5]} 4. Nxd4 {[%clk 0:03:00.5]} 4... g6 {[%clk 0:03:00.7]} 5. c4 {[%clk
0:03:00]} 5... Bg7 {[%clk 0:03:01.2]} 6. Be3 {[%clk 0:03:00.2]} 6... Nf6 {[%clk
0:03:01.6]} 7. Nc3 {[%clk 0:03:00.5]} 7... O-O {[%clk 0:03:01]} 8. Be2 {[%clk
0:03:00.7]} 8... d6 {[%clk 0:03:01.2]} 9. O-O {[%clk 0:03:00.8]} 9... Bd7 {[%clk
0:02:59.4]} 10. f4 {[%clk 0:03:00.3]} 10... Nxd4 {[%clk 0:02:57.4]} 11. Bxd4
{[%clk 0:02:59.8]} 11... Bc6 {[%clk 0:02:58]} 12. Bf3 {[%clk 0:03:00.2]} 12...
Nd7 {[%clk 0:02:55.8]} 13. Bxg7 {[%clk 0:02:57.8]} 13... Kxg7 {[%clk 0:02:56.7]}
14. Kh1 {[%clk 0:02:57.3]} 14... a5 {[%clk 0:02:54.7]} 15. Re1 {[%clk
0:02:52.4]} 15... f6 {[%clk 0:02:41.4]} 16. Nd5 {[%clk 0:02:41.6]} 16... Bxd5
{[%clk 0:02:40]} 17. exd5 {[%clk 0:02:35.5]} 17... Rf7 {[%clk 0:02:34.8]} 18.
Re2 {[%clk 0:02:31.7]} 18... a4 {[%clk 0:02:33.4]} 19. Qc2 {[%clk 0:02:20.9]}
19... a3 {[%clk 0:02:31.9]} 20. b3 {[%clk 0:02:19.9]} 20... Qb6 {[%clk
0:02:28.2]} 21. Rae1 {[%clk 0:02:18.6]} 21... Kf8 {[%clk 0:02:22.9]} 22. Bg4
{[%clk 0:01:59.6]} 22... f5 {[%clk 0:02:20.3]} 23. Bf3 {[%clk 0:01:57.8]} 23...
Nf6 {[%clk 0:02:19.8]} 24. Qc3 {[%clk 0:01:53.1]} 24... Qa5 {[%clk 0:01:59.4]}
25. Qa1 {[%clk 0:01:38.3]} 25... b5 {[%clk 0:01:52.9]} 26. Rxe7 {[%clk
0:01:33.1]} 26... Re8 {[%clk 0:01:11.4]} 27. Rxe8+ {[%clk 0:01:25.1]} 27... Nxe8
{[%clk 0:00:47.4]} 28. Qh8# {[%clk 0:01:19.8]} 1-0

[Event "Early-Titled-Tuesday-Blitz-February-06-2024"]
[Site "Chess.com"]
[Date "2024.02.06"]
[Round "10"]
[White "vladgoncharov"]
[Black "Mistango"]
[Result "0-1"]
[WhiteElo "2617"]
[BlackElo "2497"]
[TimeControl "180+1"]
[EndTime "9:53:21 PST"]
[Termination "Mistango won by resignation"]

1. d4 {[%clk 0:03:00.3]} 1... d6 {[%clk 0:02:59.5]} 2. e4 {[%clk 0:02:59.6]}
2... e5 {[%clk 0:02:59.5]} 3. dxe5 {[%clk 0:02:59.2]} 3... dxe5 {[%clk
0:03:00.4]} 4. Qxd8+ {[%clk 0:02:58.9]} 4... Kxd8 {[%clk 0:03:01.2]} 5. Bc4
{[%clk 0:02:58.8]} 5... f6 {[%clk 0:03:01.6]} 6. Be3 {[%clk 0:02:53.4]} 6... Nd7
{[%clk 0:02:59.4]} 7. c3 {[%clk 0:02:53.1]} 7... Bc5 {[%clk 0:02:59.2]} 8. Ke2
{[%clk 0:02:51.6]} 8... Bxe3 {[%clk 0:02:56.4]} 9. Kxe3 {[%clk 0:02:51.5]} 9...
Nb6 {[%clk 0:02:57.2]} 10. Bb3 {[%clk 0:02:50.4]} 10... Ke7 {[%clk 0:02:56.9]}
11. Nd2 {[%clk 0:02:49.4]} 11... Be6 {[%clk 0:02:57]} 12. Ne2 {[%clk 0:02:44]}
12... Nh6 {[%clk 0:02:56]} 13. f3 {[%clk 0:02:43.4]} 13... Nf7 {[%clk
0:02:55.9]} 14. Rhd1 {[%clk 0:02:42.2]} 14... Rhd8 {[%clk 0:02:51.7]} 15. Bxe6
{[%clk 0:02:39.5]} 15... Kxe6 {[%clk 0:02:51.3]} 16. b3 {[%clk 0:02:39.9]} 16...
Rd7 {[%clk 0:02:31.9]} 17. Nf1 {[%clk 0:02:39.7]} 17... Rad8 {[%clk 0:02:30.1]}
18. Rxd7 {[%clk 0:02:38.9]} 18... Nxd7 {[%clk 0:02:29.4]} 19. Rd1 {[%clk
0:02:36.2]} 19... Nc5 {[%clk 0:02:29.2]} 20. Rxd8 {[%clk 0:02:35.4]} 20... Nxd8
{[%clk 0:02:30.1]} 21. Kd2 {[%clk 0:02:33.2]} 21... Nc6 {[%clk 0:02:27.5]} 22.
Ne3 {[%clk 0:02:33.6]} 22... Ne7 {[%clk 0:02:27.5]} 23. Nc1 {[%clk 0:02:31.6]}
23... g6 {[%clk 0:02:25.7]} 24. Nd3 {[%clk 0:02:31.7]} 24... Nxd3 {[%clk
0:02:24.9]} 25. Kxd3 {[%clk 0:02:32.6]} 25... f5 {[%clk 0:02:18.1]} 26. a4
{[%clk 0:02:29.2]} 26... f4 {[%clk 0:02:17]} 27. Nc4 {[%clk 0:02:28.3]} 27... b6
{[%clk 0:02:16]} 28. b4 {[%clk 0:02:25.7]} 28... g5 {[%clk 0:02:15.7]} 29. h3
{[%clk 0:02:24.5]} 29... Ng6 {[%clk 0:02:15]} 30. Ke2 {[%clk 0:02:22.1]} 30...
h5 {[%clk 0:02:11.1]} 31. Na3 {[%clk 0:02:20.4]} 31... c6 {[%clk 0:02:08.9]} 32.
Nc4 {[%clk 0:02:17.7]} 32... Nf8 {[%clk 0:02:00.4]} 33. a5 {[%clk 0:02:16.9]}
33... Nd7 {[%clk 0:01:59.4]} 34. axb6 {[%clk 0:02:13.5]} 34... axb6 {[%clk
0:01:58.6]} 35. Kd3 {[%clk 0:02:10.6]} 35... b5 {[%clk 0:01:56.3]} 36. Nb2
{[%clk 0:02:09.2]} 36... Nf6 {[%clk 0:01:51.1]} 37. c4 {[%clk 0:02:08.6]} 37...
g4 {[%clk 0:01:50.7]} 38. hxg4 {[%clk 0:02:06]} 38... hxg4 {[%clk 0:01:51.6]}
39. Nd1 {[%clk 0:02:04.5]} 39... bxc4+ {[%clk 0:01:40.5]} 40. Kxc4 {[%clk
0:02:01.4]} 40... g3 {[%clk 0:01:33.3]} 41. Nb2 {[%clk 0:01:52.8]} 41... Nxe4
{[%clk 0:01:28.7]} 42. Nd3 {[%clk 0:01:41.7]} 42... Nd2+ {[%clk 0:01:25.8]} 43.
Kc5 {[%clk 0:01:38.9]} 43... Nxf3 {[%clk 0:01:25.8]} 44. Kxc6 {[%clk 0:01:38.8]}
44... Nd4+ {[%clk 0:01:22.9]} 45. Kc5 {[%clk 0:01:36.8]} 45... f3 {[%clk
0:01:23]} 0-1